bitfinex/quotes_ETHUSD_20240916
["timestamp","ask_amount","ask_price","bid_price","bid_amount"]
[1726512592982,5.26762214,2293.3,2292.9,4.36125]
[1726512593508,0.90707214,2293.3,2293.0,2.39]
[1726512593875,9.62785214,2293.4,2293.0,2.39]
[1726512594270,5.26741214,2293.4,2293.0,6.75107]
[1726512594872,5.26741214,2293.4,2293.0,6.75106]
[1726512595072,0.90707214,2293.4,2293.1,4.3609]
[1726512595503,0.90707214,2293.4,2293.2,0.16155303]
[1726512596219,0.90707214,2293.4,2293.3,0.16146281]
[1726512596581,0.90707214,2293.4,2293.0,6.75107]
[1726512596923,0.90707214,2293.3,2293.0,6.75107]
[1726512597126,0.90707214,2293.3,2293.1,4.52251326]
[1726512597323,0.90707214,2293.4,2293.1,4.52251326]
[1726512598000,0.90707214,2293.4,2293.1,0.16164326]
[1726512600483,5.26743214,2293.4,2293.1,0.16164326]
[1726512600690,0.90707214,2293.3,2292.9,6.63346]
[1726512600981,6.98686339,2293.4,2293.0,0.16170013]
[1726512601205,0.90707214,2293.3,2293.0,0.16170013]
[1726512602097,6.98686339,2293.4,2293.0,0.16170013]
[1726512602304,0.90707214,2293.3,2293.0,0.16170013]
[1726512603686,0.90707214,2293.3,2292.9,6.63346]
[1726512605033,0.90707214,2293.3,2293.0,4.36109]
[1726512605190,0.90707214,2293.3,2292.9,4.08410374]
[1726512605393,1.35810383,2293.4,2293.1,7.01296327]
[1726512605394,0.90707214,2293.4,2293.1,7.01296327]
[1726512605698,0.90707214,2293.4,2293.1,6.8513]
[1726512606017,0.90707214,2293.5,2293.3,8.66292374]
[1726512606223,0.94470354,2293.6,2293.3,8.66292374]
[1726512606417,0.94470354,2293.6,2293.4,0.16139261]
[1726512606598,0.94470354,2293.6,2293.4,4.36025]
[1726512606925,0.0376314,2293.6,2293.5,0.16123567]
[1726512607235,0.94470354,2293.6,2293.5,0.16123567]
[1726512607391,0.94501563,2293.6,2293.5,0.16123567]
[1726512607592,0.94501563,2293.6,2293.3,6.85094]
[1726512607898,0.94501563,2293.6,2293.5,0.16123567]
[1726512608099,0.94501563,2293.6,2293.4,0.16132588]
[1726512608312,0.94501563,2293.6,2293.5,0.16123567]
[1726512608684,0.94501563,2293.6,2293.3,11.21138]
[1726512608891,0.94501563,2293.6,2293.4,0.16132588]
[1726512609831,0.90738423,2293.5,2293.4,0.16132588]
[1726512610204,0.94501563,2293.6,2293.4,0.16132588]
[1726512610742,0.94501563,2293.6,2293.4,4.52161588]
[1726512610923,0.94501563,2293.6,2293.4,5.65887047]
[1726512611124,0.94501563,2293.6,2293.5,8.64524374]
[1726512611421,0.94501563,2293.6,2293.5,6.99457567]
[1726512611422,0.0376314,2293.6,2293.5,6.99457567]
[1726512612008,0.0376314,2293.6,2293.5,0.16123567]
[1726512612343,0.94541016,2293.6,2293.5,0.16113558]
[1726512612641,0.94541016,2293.6,2293.3,4.3604]
[1726512612947,0.94541016,2293.6,2293.4,0.1610323]
[1726512613615,0.0376314,2293.6,2293.4,0.1610323]
[1726512613831,0.0376314,2293.6,2293.3,4.36043]
[1726512614136,0.0376314,2293.6,2293.4,0.16105232]
[1726512615318,0.0376314,2293.6,2293.4,5.40187093]
[1726512615518,0.0376314,2293.6,2293.5,2.2994]
[1726512615837,0.94541016,2293.6,2293.5,2.46036211]
[1726512616021,0.0376314,2293.6,2293.5,2.46036211]
[1726512616209,0.94541016,2293.6,2293.5,0.16096211]
[1726512616412,11.87966156,2293.6,2293.5,0.16096211]
[1726512616616,4.36037,2293.4,2292.9,4.36116]
[1726512616820,0.90776903,2293.4,2293.1,4.36089]
[1726512617221,5.26796903,2293.5,2293.1,4.36089]
[1726512617528,0.90776903,2293.4,2293.1,4.36089]
[1726512617909,0.90776903,2293.4,2293.0,4.36107]
[1726512618413,4.39701784,2293.4,2293.0,4.36107]
[1726512619307,0.90776903,2293.4,2293.0,4.36107]
[1726512619509,25.10796903,2293.5,2293.0,4.36107]
[1726512619706,0.90776903,2293.4,2293.0,4.36107]
[1726512620721,5.26811903,2293.4,2293.0,4.36107]
[1726512622548,8.75739284,2293.4,2293.0,4.36107]
[1726512622865,0.90776903,2293.3,2293.0,4.36107]
[1726512623526,5.26829903,2293.3,2292.9,6.6605]
[1726512624456,0.90776903,2293.3,2292.9,6.6605]
[1726512625861,5.26829903,2293.3,2292.9,6.6605]
[1726512627360,8.53241856,2293.3,2292.8,3.0]
[1726512627526,4.36091,2293.1,2292.7,6.67019]
[1726512627729,0.5268679,2293.0,2292.7,6.67019]
[1726512627914,5.26867903,2293.1,2292.7,6.67019]
[1726512628122,5.26867903,2293.1,2292.8,0.16190066]
[1726512628322,5.26867903,2293.1,2292.7,6.67019]
[1726512628523,5.26867903,2293.1,2292.8,0.16190066]
[1726512628755,5.26867903,2293.1,2292.7,6.67019]
[1726512628964,5.26867903,2293.1,2292.8,0.16190066]
[1726512628965,0.90776903,2293.1,2292.8,0.16190066]
[1726512629336,0.90776903,2293.1,2292.7,11.03176]
[1726512629537,0.90776903,2293.1,2292.8,0.16190066]
[1726512629919,0.90776903,2293.1,2292.9,0.16181041]
[1726512630229,0.90776903,2293.1,2292.7,2.3087]
[1726512630424,8.53295056,2293.1,2293.0,0.16172016]
[1726512630762,8.53295056,2293.1,2292.7,2.3087]
[1726512630961,4.36112,2293.0,2292.6,4.36182]
[1726512631167,5.26918903,2292.9,2292.4,4.36221]
[1726512631376,29.47062903,2292.9,2292.7,0.16199092]
[1726512631524,1.18522551,2292.8,2292.4,4.36221]
[1726512631727,4.36149,2292.8,2292.5,0.16232498]
[1726512631981,25.10906903,2292.9,2292.5,0.16232498]
[1726512632329,20.74776903,2292.9,2292.5,4.57923368]
[1726512632529,19.84,2292.9,2292.6,2.3735]
[1726512633264,24.20131,2292.9,2292.6,2.3735]
[1726512633873,19.84,2292.9,2292.6,2.3735]
[1726512634240,19.84,2292.9,2292.7,0.21718111]
[1726512634572,19.84,2292.9,2292.8,4.36147]
[1726512634779,19.84,2292.9,2292.8,8.54687374]
[1726512634926,19.84,2292.9,2292.8,8.76426254]
[1726512635130,0.90776903,2293.2,2293.0,4.36106]
[1726512635571,8.30776903,2293.3,2293.1,2.2831]
[1726512635777,8.30776903,2293.3,2293.2,0.21701827]
[1726512635931,0.90776903,2293.3,2293.2,0.21701827]
[1726512636437,0.90776903,2293.4,2293.2,0.21701827]
[1726512637052,0.90776903,2293.4,2293.2,6.38962201]
[1726512637264,20.74776903,2293.5,2293.3,4.36039]
[1726512637439,19.84,2293.5,2293.4,2.3004]
[1726512637925,19.84,2293.5,2293.4,2.51701944]
[1726512638370,19.84,2293.5,2293.4,6.87734944]
[1726512638540,19.84,2293.5,2293.4,2.51701944]
[1726512640138,19.84,2293.5,2293.4,0.21661944]
[1726512640362,19.84,2293.5,2293.2,6.83427]
[1726512640558,19.84,2293.5,2293.3,0.21653186]
[1726512640783,19.84,2293.5,2293.2,6.83427]
[1726512641092,0.94540043,2293.6,2293.2,6.83427]
[1726512641093,0.94540043,2293.6,2293.4,0.21643925]
[1726512641300,0.94540043,2293.6,2293.3,0.21651851]
[1726512641607,0.94540043,2293.6,2293.5,2.2719]
[1726512641905,0.0376314,2293.6,2293.5,2.2719]
[1726512642075,0.0376314,2293.6,2293.5,2.48829337]
[1726512642408,0.0376314,2293.6,2293.5,11.20857337]
[1726512642609,0.0376314,2293.6,2293.5,13.86344251]
[1726512644580,0.0376314,2293.6,2293.5,18.22358251]
[1726512645999,0.0376314,2293.6,2293.5,13.86344251]
[1726512646800,0.0376314,2293.6,2293.5,13.31344251]
[1726512647721,12.66658903,2294.2,2293.5,13.31344251]
[1726512647722,8.30776903,2294.2,2294.1,11.0063]
[1726512647874,19.8776314,2294.3,2294.2,8.71762]
[1726512648076,19.8776314,2294.3,2294.2,10.21063748]
[1726512648294,19.8776314,2294.3,2294.2,10.42512851]
[1726512648502,19.8776314,2294.3,2294.2,6.06631851]
[1726512651294,0.0376314,2294.3,2294.2,10.42512851]
[1726512651494,0.0376314,2294.3,2294.2,12.79352851]
[1726512663629,0.0376314,2294.3,2294.2,8.43471851]
[1726512663834,0.0376314,2294.3,2294.2,0.21449103]
[1726512664128,0.0376314,2294.3,2293.9,8.71851]
[1726512664306,0.0376314,2294.3,2294.2,0.21355763]
[1726512664511,0.0376314,2294.3,2293.9,8.71853]
[1726512664702,0.0376314,2294.3,2294.2,0.21355763]
[1726512664925,0.0376314,2294.3,2294.0,4.35917]
[1726512665092,4.3962514,2294.3,2294.2,0.21355763]
[1726512665300,4.35881,2294.2,2294.1,0.21375682]
[1726512665505,4.35881,2294.2,2293.8,4.35955]
[1726512665815,5.27828165,2294.2,2293.8,4.35955]
[1726512666190,0.91947165,2294.2,2293.8,8.7191]
[1726512666390,4.83590654,2294.3,2293.8,8.7191]
[1726512666591,4.83590654,2294.3,2293.8,8.71904]
[1726512666786,4.83590654,2294.3,2293.8,4.35949]
[1726512666787,4.3962814,2294.3,2293.8,4.35949]
[1726512667022,4.3962814,2294.3,2293.8,4.35948]
[1726512667225,4.3962814,2294.3,2293.8,8.71895]
[1726512667930,4.3962814,2294.3,2293.9,4.35935]
[1726512669036,0.0376314,2294.3,2293.9,4.35935]
[1726512669633,0.0376314,2294.3,2294.0,4.35908]
[1726512669836,0.0376314,2294.3,2294.2,4.35881]
[1726512670043,0.0376314,2294.3,2294.2,11.1148856]
[1726512670338,0.0376314,2294.3,2294.2,6.7560756]
[1726512670523,0.0376314,2294.3,2294.2,8.26000064]
[1726512670911,0.0376314,2294.3,2294.2,12.61881064]
[1726512671092,0.0376314,2294.3,2294.2,8.17283504]
[1726512671440,0.0376314,2294.3,2294.2,12.53164504]
[1726512672221,0.0376314,2294.3,2294.2,8.17283504]
[1726512672741,0.0376314,2294.3,2294.2,12.53164504]
[1726512673030,0.0376314,2294.3,2294.2,12.74575596]
[1726512673540,0.0376314,2294.3,2294.2,13.29575596]
[1726512674901,0.0376314,2294.3,2294.2,12.74575596]
[1726512675098,0.0376314,2294.3,2294.2,6.07684596]
[1726512675299,0.0376314,2294.3,2294.2,4.57292092]
[1726512675493,0.0376314,2294.3,2294.2,0.21411092]
[1726512675726,0.0376314,2294.3,2294.2,4.57292092]
[1726512675932,0.0376314,2294.3,2294.2,0.21411092]
[1726512676431,0.0376314,2294.3,2294.2,0.21395758]
[1726512676823,4.3962614,2294.3,2293.8,6.66949]
[1726512677024,4.3962614,2294.3,2294.2,0.21395758]
[1726512677341,0.0376314,2294.3,2293.9,4.35928]
[1726512677501,0.0376314,2294.3,2294.2,0.21395758]
[1726512677702,0.0376314,2294.3,2293.9,4.35928]
[1726512677901,0.0376314,2294.3,2294.2,0.21395758]
[1726512678329,0.0376314,2294.3,2294.0,4.35918]
[1726512678648,0.0376314,2294.3,2294.1,0.21405012]
[1726512681736,0.0376314,2294.3,2294.1,4.57295012]
[1726512681950,0.0376314,2294.3,2294.2,4.35881]
[1726512682465,0.0376314,2294.3,2294.2,4.57272758]
[1726512683439,0.0376314,2294.3,2294.2,11.32820221]
[1726512683870,0.0376314,2294.3,2294.2,11.79103758]
[1726512687249,0.0376314,2294.3,2294.2,16.14984758]
[1726512687455,0.0376314,2294.3,2294.2,18.15725782]
[1726512688492,0.0376314,2294.3,2294.2,23.48149877]
[1726512688780,7.4,2294.8,2294.7,14.94947478]
[1726512688984,19.84,2294.9,2294.8,8.71534]
[1726512689158,0.0376314,2295.0,2294.9,8.71496]
[1726512689683,0.0376314,2295.0,2294.9,20.06174821]
[1726512695587,0.0376314,2295.0,2294.9,15.70426821]
[1726512695799,0.0376314,2295.0,2294.9,17.85995678]
[1726512697607,0.0376314,2295.0,2294.9,22.21743678]
[1726512697874,0.0376314,2295.0,2294.9,17.85995678]
[1726512698064,0.0376314,2295.0,2294.9,22.21743678]
[1726512698261,0.0376314,2295.0,2294.9,17.85995678]
[1726512698478,0.0376314,2295.0,2294.9,22.21743678]
[1726512699096,0.0376314,2295.0,2294.9,17.85995678]
[1726512699959,0.0376314,2295.0,2294.9,22.21743678]
[1726512700494,0.0376314,2295.0,2294.9,25.21743678]
[1726512700660,0.0376314,2295.0,2294.9,29.57491678]
[1726512700861,0.0376314,2295.0,2294.9,30.01251678]
[1726512701303,0.0376314,2295.6,2294.9,30.01251678]
[1726512701304,0.0376314,2295.6,2295.5,11.06588]
[1726512701598,0.0376314,2295.6,2295.5,19.89647478]
[1726512701801,0.0376314,2295.6,2295.5,20.10035425]
[1726512705263,0.0376314,2295.6,2295.5,15.74401425]
[1726512706262,0.0376314,2295.6,2295.5,13.39081425]
[1726512706601,0.0376314,2295.6,2295.5,14.72989568]
[1726512711490,0.0376314,2295.6,2295.5,10.2556409]
[1726512711696,0.0376314,2295.6,2295.5,14.17989568]
[1726512712374,0.0376314,2295.6,2295.5,14.72989568]
[1726512712576,0.0376314,2295.6,2295.5,17.21829568]
[1726512713095,0.0376314,2295.6,2295.5,21.57463568]
[1726512713669,0.0376314,2295.6,2295.5,24.57463568]
[1726512714363,0.0376314,2295.6,2295.5,17.72989568]
[1726512714564,0.0376314,2295.6,2295.5,10.8056409]
[1726512714865,0.0376314,2295.6,2295.5,14.72989568]
[1726512715677,0.0376314,2295.6,2295.5,8.48447425]
[1726512718093,0.0376314,2295.6,2295.5,4.56021947]
[1726512718329,0.0376314,2295.6,2295.5,0.20387947]
[1726512719792,0.0376314,2295.6,2295.5,8.57159606]
[1726512720137,0.0376314,2295.6,2295.5,12.84081425]
[1726512720347,0.0376314,2295.6,2295.5,14.12489567]
[1726512721543,0.0376314,2295.6,2295.5,4.56021947]
[1726512722732,0.0376314,2295.6,2295.5,0.20387947]
[1726512724042,0.0376314,2295.6,2295.5,4.56021947]
[1726512726539,0.0376314,2295.6,2295.5,12.9279361]
[1726512729251,0.0376314,2295.6,2295.5,15.70441425]
[1726512729446,0.0376314,2295.6,2295.5,17.27485567]
[1726512729741,0.0376314,2295.6,2295.5,16.72485567]
[1726512729944,0.0376314,2295.6,2295.5,8.91655947]
[1726512731073,0.0376314,2295.6,2295.5,4.56021947]
[1726512731352,0.0376314,2295.6,2295.5,8.91655947]
[1726512731647,0.0376314,2295.6,2295.5,4.56021947]
[1726512734136,0.0376314,2295.6,2295.5,8.48447425]
[1726512734960,0.0376314,2295.6,2295.5,12.84081425]
[1726512735652,0.0376314,2295.6,2295.5,18.04038813]
[1726512735829,0.0376314,2295.6,2295.5,19.43987683]
[1726512736029,0.0376314,2295.6,2295.5,23.79621683]
[1726512736231,0.0376314,2295.6,2295.5,24.71054214]
[1726512736431,0.0376314,2295.6,2295.5,20.35420214]
[1726512736617,0.0376314,2295.6,2295.5,15.72329541]
[1726512736821,0.0376314,2295.6,2295.5,13.39081425]
[1726512737127,0.0376314,2295.6,2295.5,15.72303925]
[1726512737516,0.0376314,2295.6,2295.5,14.32374212]
[1726512737841,0.0376314,2295.6,2295.5,15.72316366]
[1726512738155,0.0376314,2295.6,2295.5,18.20298473]
[1726512738457,0.0376314,2295.6,2295.5,16.80356319]
[1726512739019,0.0376314,2295.6,2295.5,18.20311721]
[1726512739219,0.0376314,2295.6,2295.5,18.20320902]
[1726512741064,0.0376314,2295.6,2295.5,19.11753433]
[1726512741362,0.0376314,2295.6,2295.5,22.55954902]
[1726512741569,0.0376314,2295.6,2295.5,18.20320902]
[1726512742457,0.0376314,2295.6,2295.5,19.11753433]
[1726512742665,0.0376314,2295.6,2295.5,25.96847433]
[1726512742956,0.0376314,2295.6,2295.5,28.29271258]
[1726512743257,0.0376314,2295.6,2295.5,28.77044474]
[1726512743455,0.0376314,2295.6,2295.5,28.77044306]
[1726512743761,7.4,2296.2,2296.1,4.35521]
[1726512743933,0.0376314,2296.3,2296.1,4.35521]
[1726512744130,0.0376314,2296.3,2296.1,0.20295095]
[1726512744331,0.94540043,2296.3,2295.9,4.35554]
[1726512744530,0.94540043,2296.3,2296.2,0.20285857]
[1726512744531,0.0376314,2296.3,2296.2,0.20285857]
[1726512744746,0.0376314,2296.3,2296.0,4.35529]
[1726512744946,0.0376314,2296.3,2296.2,0.20285857]
[1726512745161,0.0376314,2296.3,2296.0,4.35529]
[1726512745373,0.0376314,2296.3,2296.2,0.20285857]
[1726512745662,0.0376314,2296.3,2296.0,4.35529]
[1726512745824,0.0376314,2296.3,2296.2,0.20285857]
[1726512746019,0.0376314,2296.3,2296.1,0.20295095]
[1726512746226,0.0376314,2296.3,2296.2,0.20285857]
[1726512746528,4.03101859,2296.3,2296.0,4.35529]
[1726512746825,3.12324956,2296.3,2296.2,0.20285857]
[1726512747031,4.03101859,2296.3,2296.1,0.20295095]
[1726512747232,0.0376314,2296.3,2296.2,4.55787857]
[1726512748456,0.0376314,2296.3,2296.2,0.20285857]
[1726512748863,0.0376314,2296.3,2296.0,8.71055]
[1726512749160,0.0376314,2296.3,2296.1,0.20287105]
[1726512749373,0.70377956,2296.3,2296.1,0.20287105]
[1726512749527,0.90776903,2296.2,2295.8,4.35562]
[1726512750717,5.26289903,2296.2,2295.7,4.35596]
[1726512750963,0.73280998,2296.1,2295.8,4.35577]
[1726512751260,0.73280998,2296.1,2295.6,5.75637509]
[1726512751261,0.5995709,2296.0,2295.6,5.75637509]
[1726512751573,4.9549709,2296.0,2295.4,4.35641]
[1726512751860,3.46054712,2295.9,2295.4,4.35639]
[1726512752060,3.46054712,2295.9,2295.6,4.35612]
[1726512752061,0.90776903,2295.9,2295.6,4.35612]
[1726512752370,1.96120209,2296.0,2295.5,8.71242]
[1726512752371,5.86282993,2296.0,2295.5,8.71242]
[1726512752573,3.77777175,2295.9,2295.5,8.71242]
[1726512752724,3.77777175,2295.9,2295.5,8.71244]
[1726512752924,2.87000272,2295.9,2295.5,8.71244]
[1726512753247,2.85728327,2295.8,2295.5,4.35618]
[1726512754399,25.10325903,2296.0,2295.5,4.35618]
[1726512756994,25.10325903,2296.0,2295.6,4.35613]
[1726512757499,25.10325903,2296.0,2295.5,4.35618]
[1726512757706,0.66906173,2295.9,2295.5,4.35618]
[1726512757904,0.66906173,2295.9,2295.6,4.35605]
[1726512760805,0.66906173,2295.9,2295.7,4.35593]
[1726512761219,20.74776903,2296.0,2295.7,4.35593]
[1726512761607,20.74776903,2296.0,2295.6,4.35605]
[1726512762316,20.74776903,2296.0,2295.6,4.35602]
[1726512762717,20.74776903,2296.0,2295.7,4.35596]
[1726512762879,20.74776903,2296.0,2295.7,4.55950026]
[1726512763507,20.74776903,2296.0,2295.8,4.35575]
[1726512763717,20.74776903,2296.0,2295.9,0.20335545]
[1726512763718,19.84,2296.0,2295.9,0.20335545]
[1726512764090,19.84,2296.0,2295.8,4.35559]
[1726512764291,19.84,2296.0,2295.9,0.20337543]
[1726512768115,0.90776903,2296.1,2295.9,0.20337543]
[1726512768593,8.0943147,2296.1,2295.9,0.20337543]
[1726512768794,0.90776903,2296.0,2295.6,8.71211]
[1726512769008,0.90776903,2296.0,2295.6,4.35604]
[1726512769193,0.90776903,2296.0,2295.7,4.35595]
[1726512770126,0.90776903,2296.0,2295.5,4.35621]
[1726512770127,6.82538613,2296.0,2295.5,4.35621]
[1726512771093,6.82538613,2296.0,2295.5,8.71246]
[1726512771692,0.90776903,2295.9,2295.5,8.71246]
[1726512772313,0.90776903,2295.9,2295.5,8.71244]
[1726512774093,26.66538613,2296.0,2295.5,8.71244]
[1726512774488,0.90776903,2295.9,2295.5,8.71244]
[1726512776091,0.90776903,2295.9,2295.6,4.35615]
[1726512776297,20.74776903,2296.0,2295.6,6.83625]
[1726512776797,25.10319903,2296.0,2295.6,6.83625]
[1726512777298,20.74776903,2296.0,2295.6,6.83625]
[1726512777498,25.10317903,2296.0,2295.6,6.83625]
[1726512777893,25.10317903,2296.0,2295.7,0.2034537]
[1726512779697,28.36626656,2296.0,2295.7,0.2034537]
[1726512780392,4.35562,2295.9,2295.7,0.2034537]
[1726512780824,0.90776903,2295.9,2295.5,4.35621]
[1726512781035,0.90776903,2295.8,2295.5,4.35621]
[1726512782095,0.90776903,2295.8,2295.0,1.37186174]
[1726512782096,2.71532795,2295.6,2294.9,2.3806]
[1726512782356,2.71532795,2295.6,2294.7,1.37186174]
[1726512782357,4.35702,2295.2,2294.7,9.05394787]
[1726512782644,4.35702,2295.2,2294.8,4.35767]
[1726512782838,4.35702,2295.2,2294.7,2.3806]
[1726512782839,4.35758,2294.9,2294.5,2.4566]
[1726512783025,0.90899874,2295.1,2294.3,5.66444817]
[1726512783225,0.90899874,2295.1,2294.7,4.35775]
[1726512783621,9.62302874,2295.2,2294.7,4.35775]
[1726512783825,5.26612874,2295.1,2294.7,4.35775]
[1726512784027,5.63658958,2295.1,2294.7,4.35775]
[1726512784546,5.63658958,2295.1,2294.6,2.334]
[1726512784741,1.27941958,2295.1,2294.6,2.334]
[1726512785039,5.63654958,2295.1,2294.7,4.35786]
[1726512785228,1.27941958,2295.1,2294.7,4.35786]
[1726512785612,1.36349811,2295.4,2295.0,4.35728]
[1726512785613,0.90899874,2295.4,2295.0,4.35728]
[1726512785799,8.71284,2295.5,2295.0,6.65018]
[1726512786137,5.17515932,2295.5,2295.0,11.00737]
[1726512786533,5.17515932,2295.5,2295.0,6.65009]
[1726512787097,0.81879932,2295.5,2295.1,4.357]
[1726512787647,0.81879932,2295.5,2295.0,6.65009]
[1726512787810,5.17514932,2295.5,2295.0,11.0073]
[1726512788616,5.17514932,2295.5,2295.0,6.65009]
[1726512788819,5.17514932,2295.5,2295.0,11.0073]
[1726512790395,5.17514932,2295.5,2295.0,6.65009]
[1726512790837,5.17514932,2295.5,2295.0,11.0073]
[1726512791049,9.53158932,2295.5,2295.0,6.65009]
[1726512791231,0.51751493,2295.4,2295.0,4.35719]
[1726512791439,4.35694,2295.2,2294.8,4.35752]
[1726512791743,4.35741,2295.0,2294.5,4.35822]
[1726512791954,4.35749,2294.9,2294.4,6.74731]
[1726512792150,4.35749,2294.9,2294.5,4.35823]
[1726512792446,5.62072277,2295.0,2294.5,4.35823]
[1726512793036,5.35528028,2294.9,2294.6,0.19851634]
[1726512793424,0.99779028,2294.9,2294.6,0.19851634]
[1726512793634,5.26587874,2295.3,2294.6,4.55638634]
[1726512793846,4.35704,2295.2,2294.7,4.3577]
[1726512794357,4.35704,2295.2,2294.8,0.1983008]
[1726512794691,4.35711,2295.1,2294.7,4.3577]
[1726512794946,4.35711,2295.1,2294.9,0.19820832]
[1726512795241,4.35711,2295.1,2294.7,4.3577]
[1726512795447,4.35711,2295.1,2295.0,0.19811584]
[1726512795649,5.31291082,2295.1,2294.7,4.3577]
[1726512795852,5.31291082,2295.1,2295.0,0.19811584]
[1726512796060,0.95580082,2295.1,2294.5,6.74696]
[1726512796353,4.88876108,2295.0,2294.6,4.35803]
[1726512796566,4.35747,2295.0,2294.6,4.35803]
[1726512797110,4.35712,2295.1,2294.7,4.35786]
[1726512798335,4.35733,2295.0,2294.6,4.35805]
[1726512800167,4.35758,2294.9,2294.4,4.35834]
[1726512800375,4.35758,2294.9,2294.4,4.35837]
[1726512800376,4.35768,2294.8,2294.4,4.35837]
[1726512800531,4.793338,2294.9,2294.4,4.35837]
[1726512800938,4.793338,2294.9,2294.4,4.35835]
[1726512801453,4.35778,2294.8,2294.3,4.35852]
[1726512801634,4.8371138,2294.8,2294.3,4.35851]
[1726512801984,4.8371138,2294.8,2294.3,8.71702]
[1726512802275,4.35788,2294.7,2294.3,4.35851]
[1726512802479,5.32092518,2294.7,2294.3,4.35851]
[1726512803254,4.35807,2294.6,2294.1,6.84107]
[1726512803460,24.19807,2294.6,2294.1,11.19999]
[1726512803984,24.19807,2294.6,2294.1,6.84107]
[1726512804137,22.8398329,2294.6,2294.1,2.4822]
[1726512804337,4.35872,2294.3,2293.8,2.4944]
[1726512804592,22.8398329,2294.6,2293.9,4.35925]
[1726512804593,0.82782077,2294.2,2293.9,4.35925]
[1726512804782,8.71669,2294.5,2294.0,4.3591]
[1726512804963,3.15565229,2294.4,2294.0,4.55855229]
[1726512805142,7.51409229,2294.4,2294.0,0.19945229]
[1726512808385,3.15565229,2294.4,2294.0,0.19945229]
[1726512808551,7.51412229,2294.4,2294.0,0.19945229]
[1726512809451,27.35412229,2294.4,2294.0,0.19945229]
[1726512809647,24.19847,2294.4,2294.0,0.19945229]
[1726512810588,4.35865,2294.3,2294.0,0.19945229]
[1726512810783,4.35894,2294.2,2293.7,4.35961]
[1726512810959,0.61691513,2294.1,2293.7,4.35961]
[1726512811296,19.84,2294.0,2293.6,2.4232314]
[1726512811781,19.84,2294.0,2293.7,4.35975]
[1726512814094,19.84,2294.0,2293.7,4.35967]
[1726512814258,19.84,2294.0,2293.8,4.35943]
[1726512815361,4.35873,2294.3,2293.8,4.35943]
[1726512815554,5.970443,2294.3,2293.8,4.35943]
[1726512818656,10.329173,2294.3,2293.8,4.35943]
[1726512818851,4.35882,2294.2,2293.8,4.35943]
[1726512820487,5.970443,2294.3,2293.9,4.35929]
[1726512820691,24.19845,2294.4,2294.0,4.35914]
[1726512820895,24.19843,2294.4,2294.0,4.55959462]
[1726512821096,27.794083,2294.4,2294.0,4.55959462]
[1726512821460,23.435653,2294.4,2294.0,4.55952462]
[1726512822188,23.435653,2294.4,2294.0,8.91863462]
[1726512822388,19.84,2294.4,2294.0,8.91863462]
[1726512822569,19.84,2294.4,2294.0,0.20045462]
[1726512822896,19.84,2294.4,2294.0,4.55961462]
[1726512823070,19.84,2294.4,2294.0,8.91871462]
[1726512824257,24.19845,2294.4,2294.0,4.55955462]
[1726512824579,4.35868,2294.3,2294.0,0.20045462]
[1726512824957,4.35868,2294.3,2293.8,4.35944]
[1726512825159,8.71744,2294.3,2294.1,0.20019608]
[1726512825360,2.88645353,2294.2,2293.8,4.35944]
[1726512826253,2.88645353,2294.2,2293.8,8.71893]
[1726512826459,4.35868,2294.3,2293.8,8.71893]
[1726512827387,24.19868,2294.3,2293.8,8.71893]
[1726512829496,19.84,2294.3,2293.7,2.42]
[1726512829692,19.84,2294.3,2293.9,4.35927]
[1726512830470,19.84,2294.3,2294.0,4.35918]
[1726512830674,19.84,2294.3,2294.1,6.82741]
[1726512830911,19.84,2294.3,2294.0,6.16939131]
[1726512830912,19.84,2294.3,2294.0,4.35918]
[1726512831069,23.75307166,2294.3,2293.7,2.4685]
[1726512831410,4.3591,2294.1,2293.7,2.4685]
[1726512831903,4.35924,2294.0,2293.6,4.3974614]
[1726512832089,5.231048,2294.0,2293.6,4.3974614]
[1726512832799,4.3594,2293.9,2293.6,0.0376314]
[1726512833004,9.590428,2294.0,2293.6,0.0376314]
[1726512833221,4.35961,2293.8,2293.6,0.0376314]
[1726512833369,6.87372724,2293.9,2293.6,0.0376314]
[1726512833692,5.06351593,2293.9,2293.6,0.0376314]
[1726512835167,19.84,2294.0,2293.6,0.0376314]
[1726512835168,24.19923,2294.0,2293.7,2.4685]
[1726512835711,24.19923,2294.0,2293.6,0.0376314]
[1726512835712,4.3594,2293.9,2293.6,0.0376314]
[1726512835867,2.41994,2293.8,2293.6,0.0376314]
[1726512836068,4.3594,2293.9,2293.6,0.0376314]
[1726512836804,8.71893,2293.9,2293.6,0.0376314]
[1726512836982,28.55893,2293.9,2293.6,0.0376314]
[1726512837184,24.1994,2293.9,2293.6,0.0376314]
[1726512837502,28.55891,2293.9,2293.6,0.0376314]
[1726512837711,2.855891,2293.8,2293.6,0.0376314]
[1726512838005,2.855891,2293.8,2293.7,0.19435601]
[1726512838210,7.215461,2293.8,2293.7,0.19435601]
[1726512838512,2.855891,2293.8,2293.7,0.19435601]
[1726512838682,24.1994,2293.9,2293.7,0.19435601]
[1726512842112,8.7189,2293.9,2293.7,0.19435601]
[1726512842426,4.3594,2293.9,2293.7,0.19435601]
[1726512845021,25.10820874,2294.0,2293.7,0.19435601]
[1726512845314,4.35957,2293.8,2293.7,0.19435601]
[1726512846917,8.71914,2293.8,2293.7,0.19435601]
[1726512847086,9.62813874,2293.8,2293.7,0.19435601]
[1726512847420,8.71952,2293.7,2293.6,0.0376314]
[1726512847579,13.04415689,2293.7,2293.6,0.0376314]
[1726512847977,32.88415689,2293.7,2293.6,0.23218626]
[1726512848177,32.88415689,2293.7,2293.6,0.0376314]
[1726512848409,33.33975558,2293.7,2293.6,0.0376314]
[1726512848616,31.97625747,2293.7,2293.6,0.0376314]
[1726512848907,33.78706258,2293.7,2293.6,0.0376314]
[1726512849305,33.33760362,2293.7,2293.6,0.0376314]
[1726512849499,33.78706258,2293.7,2293.6,0.0376314]
[1726512849722,38.14682258,2293.7,2293.6,0.0376314]
[1726512850018,41.60536892,2293.7,2293.6,0.0376314]
[1726512850329,43.69577747,2293.7,2293.6,0.0376314]
[1726512850477,46.41899921,2293.7,2293.6,0.0376314]
[1726512850824,46.96899921,2293.7,2293.6,0.0376314]
[1726512851021,44.24577747,2293.7,2293.6,0.0376314]
[1726512852489,46.51297063,2293.7,2293.6,0.0376314]
[1726512852793,44.24577747,2293.7,2293.6,0.0376314]
[1726512853207,46.5129705,2293.7,2293.6,0.0376314]
[1726512853417,46.51215409,2293.7,2293.6,0.0376314]
[1726512854391,46.51224481,2293.7,2293.6,0.0376314]